[Event "Late-Titled-Tuesday-Blitz-August-29-2023"]
[Site "Chess.com"]
[Date "2023.08.29"]
[Round "10"]
[White "ilushka"]
[Black "XiaoKangZhong"]
[Result "1-0"]
[WhiteElo "2409"]
[BlackElo "2533"]
[TimeControl "180+1"]
[EndTime "15:53:34 PDT"]
[Termination "ilushka won by checkmate"]

1. e4 {[%clk 0:03:00.9]} 1... d5 {[%clk 0:02:59.7]} 2. exd5 {[%clk 0:03:00.4]}
2... Qxd5 {[%clk 0:03:00.6]} 3. Nf3 {[%clk 0:02:59.7]} 3... Nf6 {[%clk
0:02:54.2]} 4. c4 {[%clk 0:02:56.9]} 4... Qa5 {[%clk 0:02:50.8]} 5. Nc3 {[%clk
0:02:53.8]} 5... c5 {[%clk 0:02:48.6]} 6. d4 {[%clk 0:02:53.6]} 6... cxd4 {[%clk
0:02:47.4]} 7. Nxd4 {[%clk 0:02:50.1]} 7... e6 {[%clk 0:02:38.5]} 8. Be2 {[%clk
0:02:48.5]} 8... Bb4 {[%clk 0:02:22.9]} 9. O-O {[%clk 0:02:39.4]} 9... Bxc3
{[%clk 0:02:17.3]} 10. bxc3 {[%clk 0:02:38.9]} 10... O-O {[%clk 0:02:17.5]} 11.
Qb3 {[%clk 0:02:35.8]} 11... Na6 {[%clk 0:02:08.6]} 12. Ba3 {[%clk 0:02:25.2]}
12... Rd8 {[%clk 0:02:05.6]} 13. Bf3 {[%clk 0:02:16]} 13... Qc7 {[%clk
0:01:53.1]} 14. Nb5 {[%clk 0:02:11.9]} 14... Qb6 {[%clk 0:01:43.2]} 15. Rfd1
{[%clk 0:02:03]} 15... Bd7 {[%clk 0:01:36.7]} 16. Nd6 {[%clk 0:02:02]} 16... Bc6
{[%clk 0:01:10.2]} 17. Nxb7 {[%clk 0:01:55.3]} 17... Rxd1+ {[%clk 0:00:54.4]}
18. Rxd1 {[%clk 0:01:53.3]} 18... Bxf3 {[%clk 0:00:54.3]} 19. Qxb6 {[%clk
0:01:38.6]} 19... axb6 {[%clk 0:00:52.2]} 20. gxf3 {[%clk 0:01:39.5]} 20... Nc7
{[%clk 0:00:43.5]} 21. Rd8+ {[%clk 0:01:35.9]} 21... Rxd8 {[%clk 0:00:41.9]} 22.
Nxd8 {[%clk 0:01:36.8]} 22... Nd7 {[%clk 0:00:35.6]} 23. Bd6 {[%clk 0:01:19]}
23... Ne8 {[%clk 0:00:31.2]} 24. Bb4 {[%clk 0:00:55.3]} 24... Nc7 {[%clk
0:00:16.9]} 25. f4 {[%clk 0:00:48]} 25... Na6 {[%clk 0:00:16.9]} 26. Nc6 {[%clk
0:00:38.6]} 26... Ndc5 {[%clk 0:00:14.7]} 27. Ne7+ {[%clk 0:00:34.4]} 27... Kh8
{[%clk 0:00:09.6]} 28. Nc8 {[%clk 0:00:35.3]} 28... Na4 {[%clk 0:00:07.1]} 29.
Kf1 {[%clk 0:00:32.5]} 29... f6 {[%clk 0:00:07.1]} 30. Ke2 {[%clk 0:00:32.3]}
30... Kg8 {[%clk 0:00:07.8]} 31. Kd3 {[%clk 0:00:22.7]} 31... Kf7 {[%clk
0:00:07.8]} 32. Nd6+ {[%clk 0:00:11.6]} 32... Ke7 {[%clk 0:00:06]} 33. Kc2
{[%clk 0:00:10.1]} 33... Kd7 {[%clk 0:00:05.6]} 34. Ne4 {[%clk 0:00:05.4]} 34...
Kc6 {[%clk 0:00:03.8]} 35. Ng3 {[%clk 0:00:02.6]} 35... Kd7 {[%clk 0:00:02.8]}
36. Nh5 {[%clk 0:00:02.2]} 36... f5 {[%clk 0:00:01.9]} 37. Nxg7 {[%clk
0:00:02.6]} 37... N4c5 {[%clk 0:00:02.4]} 38. Bxc5 {[%clk 0:00:02.3]} 38... Nxc5
{[%clk 0:00:02.7]} 39. Nh5 {[%clk 0:00:03.2]} 39... Ne4 {[%clk 0:00:02.8]} 40.
f3 {[%clk 0:00:02.9]} 40... Nf6 {[%clk 0:00:03.2]} 41. Nxf6+ {[%clk 0:00:02.8]}
41... Ke7 {[%clk 0:00:03.8]} 42. Nxh7 {[%clk 0:00:03.6]} 42... Kf7 {[%clk
0:00:03.7]} 43. Ng5+ {[%clk 0:00:04]} 43... Kg7 {[%clk 0:00:04.6]} 44. Nxe6+
{[%clk 0:00:04.3]} 44... Kf6 {[%clk 0:00:05.5]} 45. Nd4 {[%clk 0:00:05.1]} 45...
Ke7 {[%clk 0:00:06.4]} 46. h4 {[%clk 0:00:05.2]} 46... Kd6 {[%clk 0:00:07.3]}
47. h5 {[%clk 0:00:06.1]} 47... Kc5 {[%clk 0:00:08.2]} 48. h6 {[%clk 0:00:06.9]}
48... Kd6 {[%clk 0:00:09.1]} 49. h7 {[%clk 0:00:07.3]} 49... Kc5 {[%clk
0:00:10]} 50. h8=Q {[%clk 0:00:08.2]} 50... Kxc4 {[%clk 0:00:10.9]} 51. Qc8+
{[%clk 0:00:07.9]} 51... Kd5 {[%clk 0:00:11.2]} 52. Qc6# {[%clk 0:00:07.9]} 1-0

[Event "Late-Titled-Tuesday-Blitz-August-29-2023"]
[Site "Chess.com"]
[Date "2023.08.29"]
[Round "10"]
[White "IlanSchnaider"]
[Black "Anton_Demchenko"]
[Result "1-0"]
[WhiteElo "2739"]
[BlackElo "2911"]
[TimeControl "180+1"]
[EndTime "15:53:35 PDT"]
[Termination "IlanSchnaider won on time"]

1. e4 {[%clk 0:03:00.9]} 1... e5 {[%clk 0:02:59.6]} 2. Nf3 {[%clk 0:03:00.8]}
2... Nc6 {[%clk 0:03:00]} 3. d4 {[%clk 0:03:01.1]} 3... exd4 {[%clk 0:03:00.9]}
4. Nxd4 {[%clk 0:03:02]} 4... Bc5 {[%clk 0:03:01.3]} 5. Nb3 {[%clk 0:03:02.4]}
5... Bb6 {[%clk 0:03:01.5]} 6. Nc3 {[%clk 0:03:03.2]} 6... d6 {[%clk 0:03:01.8]}
7. Qe2 {[%clk 0:03:02]} 7... a5 {[%clk 0:03:01.9]} 8. Be3 {[%clk 0:03:02.5]}
8... a4 {[%clk 0:03:01]} 9. Bxb6 {[%clk 0:03:01.8]} 9... axb3 {[%clk 0:03:01.7]}
10. Be3 {[%clk 0:03:02.2]} 10... bxa2 {[%clk 0:03:02.4]} 11. Qb5 {[%clk
0:02:53]} 11... Nf6 {[%clk 0:02:58.1]} 12. Bc4 {[%clk 0:02:49.6]} 12... O-O
{[%clk 0:02:35.1]} 13. Bxa2 {[%clk 0:02:39.9]} 13... Be6 {[%clk 0:02:30.9]} 14.
O-O {[%clk 0:02:38.9]} 14... Bxa2 {[%clk 0:02:29.6]} 15. Nxa2 {[%clk 0:02:34.2]}
15... Nxe4 {[%clk 0:02:19]} 16. Qxb7 {[%clk 0:02:32.8]} 16... Qd7 {[%clk
0:02:19.7]} 17. Nb4 {[%clk 0:02:22]} 17... Rxa1 {[%clk 0:02:07.4]} 18. Rxa1
{[%clk 0:02:21.4]} 18... Nxb4 {[%clk 0:02:04.9]} 19. Qxe4 {[%clk 0:02:18.2]}
19... Qb5 {[%clk 0:01:43.6]} 20. Bd4 {[%clk 0:02:09.5]} 20... Nc6 {[%clk
0:01:04.3]} 21. Bc3 {[%clk 0:01:55.4]} 21... Nd8 {[%clk 0:00:56]} 22. Ra5 {[%clk
0:01:40.2]} 22... Qd7 {[%clk 0:00:41.6]} 23. Rg5 {[%clk 0:00:50.8]} 23... f6
{[%clk 0:00:41.6]} 24. Rg3 {[%clk 0:00:39.3]} 24... Ne6 {[%clk 0:00:39.5]} 25.
h4 {[%clk 0:00:38.4]} 25... Qf7 {[%clk 0:00:33.5]} 26. Qd5 {[%clk 0:00:33.2]}
26... Nf4 {[%clk 0:00:22.1]} 27. Qe4 {[%clk 0:00:27.3]} 27... Nd5 {[%clk
0:00:21.7]} 28. Rd3 {[%clk 0:00:17.9]} 28... c6 {[%clk 0:00:20.7]} 29. Kh2
{[%clk 0:00:12.9]} 29... Re8 {[%clk 0:00:20.4]} 30. Qg4 {[%clk 0:00:12.9]} 30...
f5 {[%clk 0:00:18.8]} 31. Qg3 {[%clk 0:00:08.3]} 31... Re4 {[%clk 0:00:19.2]}
32. Rf3 {[%clk 0:00:07.4]} 32... f4 {[%clk 0:00:07.8]} 33. Qg4 {[%clk
0:00:07.1]} 33... h6 {[%clk 0:00:06.9]} 34. Qc8+ {[%clk 0:00:06.8]} 34... Qe8
{[%clk 0:00:06.8]} 35. Qf5 {[%clk 0:00:06.2]} 35... Qe6 {[%clk 0:00:05.9]} 36.
Qh5 {[%clk 0:00:05]} 36... Nxc3 {[%clk 0:00:04.7]} 37. Rxc3 {[%clk 0:00:04.5]}
37... c5 {[%clk 0:00:05.2]} 38. Rd3 {[%clk 0:00:03.6]} 38... c4 {[%clk
0:00:04.6]} 39. Rd2 {[%clk 0:00:02.3]} 39... Re5 {[%clk 0:00:02]} 40. Qf3 {[%clk
0:00:02.9]} 40... Re4 {[%clk 0:00:01.1]} 41. c3 {[%clk 0:00:02.5]} 1-0

[Event "Late-Titled-Tuesday-Blitz-August-29-2023"]
[Site "Chess.com"]
[Date "2023.08.29"]
[Round "10"]
[White "jaskol95"]
[Black "Cambek64"]
[Result "1-0"]
[WhiteElo "2582"]
[BlackElo "2500"]
[TimeControl "180+1"]
[EndTime "15:53:51 PDT"]
[Termination "jaskol95 won on time"]

1. e4 {[%clk 0:03:00.9]} 1... Nf6 {[%clk 0:02:59.4]} 2. e5 {[%clk 0:02:54.9]}
2... Nd5 {[%clk 0:02:59.4]} 3. Nc3 {[%clk 0:02:55.6]} 3... Nxc3 {[%clk
0:02:58.4]} 4. dxc3 {[%clk 0:02:55.5]} 4... d6 {[%clk 0:02:58.4]} 5. Bc4 {[%clk
0:02:55.4]} 5... e6 {[%clk 0:02:58.4]} 6. Nf3 {[%clk 0:02:54.9]} 6... Be7 {[%clk
0:02:58.7]} 7. Bf4 {[%clk 0:02:53.5]} 7... O-O {[%clk 0:02:58.8]} 8. O-O {[%clk
0:02:52.7]} 8... d5 {[%clk 0:02:53.7]} 9. Bd3 {[%clk 0:02:52.9]} 9... c5 {[%clk
0:02:54.2]} 10. c4 {[%clk 0:02:52.1]} 10... d4 {[%clk 0:02:45.2]} 11. Nd2 {[%clk
0:02:38.4]} 11... Bd7 {[%clk 0:02:22.2]} 12. Ne4 {[%clk 0:02:33.5]} 12... Bc6
{[%clk 0:02:21.2]} 13. Qh5 {[%clk 0:02:33.3]} 13... g6 {[%clk 0:02:17.2]} 14.
Qh6 {[%clk 0:02:27.8]} 14... Bxe4 {[%clk 0:02:16.1]} 15. Bxe4 {[%clk 0:02:27.1]}
15... Nc6 {[%clk 0:02:16.6]} 16. h4 {[%clk 0:02:16.2]} 16... Re8 {[%clk
0:02:15.1]} 17. Bg3 {[%clk 0:02:01.7]} 17... Bf8 {[%clk 0:02:11.5]} 18. Qd2
{[%clk 0:02:01.9]} 18... h5 {[%clk 0:02:08.9]} 19. f4 {[%clk 0:02:00.4]} 19...
Bg7 {[%clk 0:02:08.7]} 20. a3 {[%clk 0:01:58.5]} 20... a5 {[%clk 0:02:03.7]} 21.
Bf2 {[%clk 0:01:52.6]} 21... Qc7 {[%clk 0:01:51.1]} 22. g3 {[%clk 0:01:52.7]}
22... Red8 {[%clk 0:01:41]} 23. Kg2 {[%clk 0:01:51.9]} 23... b6 {[%clk
0:01:33.1]} 24. Qd3 {[%clk 0:01:51.2]} 24... Rac8 {[%clk 0:01:31.6]} 25. g4
{[%clk 0:01:42.9]} 25... hxg4 {[%clk 0:01:28]} 26. h5 {[%clk 0:01:42.2]} 26...
g5 {[%clk 0:01:16.4]} 27. h6 {[%clk 0:01:41.2]} 27... gxf4 {[%clk 0:01:05.1]}
28. hxg7 {[%clk 0:01:39.7]} 28... Nxe5 {[%clk 0:01:05.1]} 29. Qd2 {[%clk
0:01:31.9]} 29... Nxc4 {[%clk 0:00:41.2]} 30. Qd3 {[%clk 0:01:10.9]} 30... Ne3+
{[%clk 0:00:31.8]} 31. Kg1 {[%clk 0:01:09.5]} 31... f5 {[%clk 0:00:30.1]} 32.
Bg2 {[%clk 0:01:07.8]} 32... Kxg7 {[%clk 0:00:24.3]} 33. Bxe3 {[%clk 0:00:54.8]}
33... dxe3 {[%clk 0:00:20.2]} 34. Qc3+ {[%clk 0:00:54.9]} 34... Rd4 {[%clk
0:00:19.8]} 35. b4 {[%clk 0:00:47.3]} 35... Rd8 {[%clk 0:00:15.1]} 36. bxa5
{[%clk 0:00:40.7]} 36... bxa5 {[%clk 0:00:13.8]} 37. Rab1 {[%clk 0:00:41.2]}
37... Qe5 {[%clk 0:00:13.6]} 38. Rb7+ {[%clk 0:00:40.8]} 38... Kf6 {[%clk
0:00:13.9]} 39. Qxa5 {[%clk 0:00:36.6]} 39... e2 {[%clk 0:00:13.6]} 40. Re1
{[%clk 0:00:34.3]} 40... f3 {[%clk 0:00:12.6]} 41. Qa7 {[%clk 0:00:32.9]} 41...
Kg6 {[%clk 0:00:08.9]} 42. Rh7 {[%clk 0:00:22.7]} 42... Rd1 {[%clk 0:00:08.5]}
43. Qf7+ {[%clk 0:00:22.2]} 43... Kg5 {[%clk 0:00:06.3]} 44. Qh5+ {[%clk
0:00:16.6]} 44... Kf4 {[%clk 0:00:05.8]} 45. Qh2+ {[%clk 0:00:13.1]} 45... Ke3
{[%clk 0:00:05.5]} 46. Qxe5+ {[%clk 0:00:13]} 46... Kd2 {[%clk 0:00:02.6]} 47.
Kf2 {[%clk 0:00:13]} 47... Rxe1 {[%clk 0:00:00.6]} 48. Qe3+ {[%clk 0:00:13.1]}
1-0

[Event "Late-Titled-Tuesday-Blitz-August-29-2023"]
[Site "Chess.com"]
[Date "2023.08.29"]
[Round "10"]
[White "KrokerGuy"]
[Black "GoltsevDmitry2000"]
[Result "0-1"]
[WhiteElo "2507"]
[BlackElo "2632"]
[TimeControl "180+1"]
[EndTime "15:53:55 PDT"]
[Termination "GoltsevDmitry2000 won by resignation"]

1. e4 {[%clk 0:03:00.9]} 1... e6 {[%clk 0:02:45.1]} 2. d4 {[%clk 0:03:00.4]}
2... d5 {[%clk 0:02:46]} 3. Nc3 {[%clk 0:03:01.2]} 3... c5 {[%clk 0:02:46.3]} 4.
exd5 {[%clk 0:02:53.3]} 4... exd5 {[%clk 0:02:47.2]} 5. Bb5+ {[%clk 0:02:45.5]}
5... Nc6 {[%clk 0:02:43.5]} 6. Nf3 {[%clk 0:02:11.8]} 6... Nf6 {[%clk
0:02:39.6]} 7. O-O {[%clk 0:02:09.8]} 7... Be7 {[%clk 0:02:36.9]} 8. dxc5 {[%clk
0:02:05.9]} 8... Bxc5 {[%clk 0:02:37.8]} 9. Re1+ {[%clk 0:02:05.4]} 9... Be6
{[%clk 0:02:37.3]} 10. Ne5 {[%clk 0:01:47.7]} 10... O-O {[%clk 0:02:36.4]} 11.
Bxc6 {[%clk 0:01:43]} 11... bxc6 {[%clk 0:02:36.1]} 12. Bg5 {[%clk 0:01:23.2]}
12... Qb6 {[%clk 0:02:30.3]} 13. Nd3 {[%clk 0:01:22.8]} 13... Be7 {[%clk
0:02:28]} 14. Nf4 {[%clk 0:00:54.5]} 14... Ng4 {[%clk 0:02:11.6]} 15. Nxe6
{[%clk 0:00:41.6]} 15... Nxf2 {[%clk 0:01:59.1]} 16. Qd4 {[%clk 0:00:22.1]}
16... fxe6 {[%clk 0:01:42.2]} 17. Qxb6 {[%clk 0:00:19]} 17... axb6 {[%clk
0:01:43.1]} 18. Bxe7 {[%clk 0:00:19.4]} 18... Rf7 {[%clk 0:01:37.7]} 19. Rxe6
{[%clk 0:00:17.4]} 19... Re8 {[%clk 0:01:32.9]} 20. Rae1 {[%clk 0:00:17.1]}
20... d4 {[%clk 0:01:28.7]} 21. Nb1 {[%clk 0:00:08]} 21... d3 {[%clk 0:01:26.6]}
22. cxd3 {[%clk 0:00:03.1]} 22... Nxd3 {[%clk 0:01:27.5]} 23. R1e3 {[%clk
0:00:03.1]} 23... Nf4 {[%clk 0:01:23.7]} 24. R6e4 {[%clk 0:00:02.9]} 24... Nd5
{[%clk 0:01:24.1]} 25. Bg5 {[%clk 0:00:01.9]} 25... Ref8 {[%clk 0:01:23.1]} 26.
Re1 {[%clk 0:00:02.4]} 26... h6 {[%clk 0:01:23.2]} 27. Bh4 {[%clk 0:00:02.8]}
27... Nf4 {[%clk 0:01:21.6]} 28. Bg3 {[%clk 0:00:02.8]} 28... Nd3 {[%clk
0:01:21.3]} 29. Rd1 {[%clk 0:00:01.7]} 29... Nxb2 {[%clk 0:01:20.1]} 30. Rc1
{[%clk 0:00:02.3]} 30... Nd3 {[%clk 0:01:20.6]} 31. Rd1 {[%clk 0:00:03]} 31...
Nb2 {[%clk 0:01:18.4]} 32. Rde1 {[%clk 0:00:03.2]} 32... Nd3 {[%clk 0:01:18.2]}
33. Rd1 {[%clk 0:00:03.7]} 33... Nc5 {[%clk 0:01:17.4]} 34. Ree1 {[%clk
0:00:02]} 34... Ra8 {[%clk 0:01:17.6]} 35. Re2 {[%clk 0:00:02]} 35... b5 {[%clk
0:01:12.9]} 36. Nc3 {[%clk 0:00:02.3]} 36... Ra3 {[%clk 0:01:11.7]} 37. Ne4
{[%clk 0:00:02.3]} 37... Nd3 {[%clk 0:01:10.3]} 38. Nd6 {[%clk 0:00:01.1]} 38...
Rfa7 {[%clk 0:01:06.3]} 39. Red2 {[%clk 0:00:01.5]} 39... Nc5 {[%clk 0:01:05.1]}
40. Nc8 {[%clk 0:00:02]} 40... Ra8 {[%clk 0:01:04.7]} 41. Ne7+ {[%clk
0:00:02.3]} 41... Kf7 {[%clk 0:01:04.3]} 42. Nxc6 {[%clk 0:00:03.2]} 42... Ne4
{[%clk 0:01:04]} 43. Rc2 {[%clk 0:00:02.7]} 43... Rxa2 {[%clk 0:01:01.4]} 44.
Ne5+ {[%clk 0:00:03.1]} 44... Ke6 {[%clk 0:01:00.4]} 45. Rxa2 {[%clk 0:00:02.6]}
45... Rxa2 {[%clk 0:01:01.3]} 46. Rb1 {[%clk 0:00:02.3]} 46... Nc3 {[%clk
0:00:58.8]} 47. Rb3 {[%clk 0:00:02]} 47... Ne2+ {[%clk 0:00:57.3]} 48. Kf2
{[%clk 0:00:01.6]} 48... Nd4+ {[%clk 0:00:56.5]} 49. Ke3 {[%clk 0:00:01.3]}
49... Nxb3 {[%clk 0:00:56.8]} 50. Nd3 {[%clk 0:00:01.9]} 50... g5 {[%clk
0:00:55.3]} 51. h3 {[%clk 0:00:01.6]} 51... Rxg2 {[%clk 0:00:55.3]} 52. Be1
{[%clk 0:00:02.2]} 52... Rh2 {[%clk 0:00:53.8]} 53. Nf2 {[%clk 0:00:02]} 53...
Rg2 {[%clk 0:00:52]} 54. Kf3 {[%clk 0:00:02.5]} 54... Rg1 {[%clk 0:00:52.5]} 55.
Nd3 {[%clk 0:00:02.2]} 55... Nd4+ {[%clk 0:00:52]} 56. Kf2 {[%clk 0:00:02.6]}
56... Rh1 {[%clk 0:00:51.4]} 57. Kg2 {[%clk 0:00:03]} 57... Rxe1 {[%clk
0:00:51.8]} 58. Nxe1 {[%clk 0:00:03.6]} 58... b4 {[%clk 0:00:52.7]} 59. Nd3
{[%clk 0:00:03.9]} 59... b3 {[%clk 0:00:53.6]} 60. Kf2 {[%clk 0:00:03.5]} 60...
Kd5 {[%clk 0:00:54.1]} 61. Ke3 {[%clk 0:00:04.1]} 61... Kc4 {[%clk 0:00:54.3]}
62. Kd2 {[%clk 0:00:02.4]} 62... Nf3+ {[%clk 0:00:54.1]} 63. Ke3 {[%clk
0:00:02.5]} 63... Kc3 {[%clk 0:00:54.7]} 64. Nc5 {[%clk 0:00:01.2]} 64... Ng1
{[%clk 0:00:52.8]} 65. Nxb3 {[%clk 0:00:01.3]} 65... Kxb3 {[%clk 0:00:52.6]} 66.
h4 {[%clk 0:00:01.4]} 66... gxh4 {[%clk 0:00:50.4]} 67. Kf2 {[%clk 0:00:01.9]}
67... Nh3+ {[%clk 0:00:50.4]} 68. Kf3 {[%clk 0:00:02]} 68... Ng5+ {[%clk
0:00:51.3]} 69. Kg4 {[%clk 0:00:02.7]} 69... h3 {[%clk 0:00:52.2]} 0-1

[Event "Late-Titled-Tuesday-Blitz-August-29-2023"]
[Site "Chess.com"]
[Date "2023.08.29"]
[Round "10"]
[White "IMRosen"]
[Black "GMKrikor"]
[Result "0-1"]
[WhiteElo "2621"]
[BlackElo "2876"]
[TimeControl "180+1"]
[EndTime "15:53:56 PDT"]
[Termination "GMKrikor won on time"]

1. d4 {[%clk 0:02:53.1]} 1... Nf6 {[%clk 0:03:00.1]} 2. Bf4 {[%clk 0:02:51.5]}
2... g6 {[%clk 0:02:57.2]} 3. Nc3 {[%clk 0:02:51.5]} 3... d5 {[%clk 0:02:42.9]}
4. e3 {[%clk 0:02:51.8]} 4... c6 {[%clk 0:02:36.9]} 5. h4 {[%clk 0:02:51.1]}
5... h6 {[%clk 0:02:36]} 6. Nf3 {[%clk 0:02:50.7]} 6... Bg7 {[%clk 0:02:36.1]}
7. Ne5 {[%clk 0:02:49.8]} 7... Nbd7 {[%clk 0:02:36.1]} 8. Bd3 {[%clk 0:02:43.7]}
8... e6 {[%clk 0:02:34.1]} 9. Qf3 {[%clk 0:02:37.9]} 9... Nxe5 {[%clk
0:02:33.5]} 10. Bxe5 {[%clk 0:02:38]} 10... O-O {[%clk 0:02:27.9]} 11. O-O-O
{[%clk 0:02:23.1]} 11... b6 {[%clk 0:02:17.2]} 12. g4 {[%clk 0:02:18]} 12... Nd7
{[%clk 0:02:09.1]} 13. Bxg7 {[%clk 0:01:59.7]} 13... Kxg7 {[%clk 0:02:10]} 14.
Qg3 {[%clk 0:01:59.3]} 14... c5 {[%clk 0:02:07.2]} 15. h5 {[%clk 0:01:25.9]}
15... g5 {[%clk 0:01:34.5]} 16. f4 {[%clk 0:01:25.8]} 16... c4 {[%clk
0:01:35.1]} 17. Be2 {[%clk 0:01:26.1]} 17... b5 {[%clk 0:01:35.5]} 18. Nxb5
{[%clk 0:01:06.8]} 18... Rb8 {[%clk 0:01:27.7]} 19. Nc3 {[%clk 0:01:03.2]} 19...
Qb6 {[%clk 0:01:07.8]} 20. fxg5 {[%clk 0:00:58.9]} 20... hxg5 {[%clk 0:01:08.7]}
21. h6+ {[%clk 0:00:49.1]} 21... Kh8 {[%clk 0:01:07.5]} 22. Kd2 {[%clk
0:00:49.8]} 22... f6 {[%clk 0:01:01.6]} 23. h7 {[%clk 0:00:44]} 23... Rf7 {[%clk
0:00:59.2]} 24. Rdf1 {[%clk 0:00:39.2]} 24... Bb7 {[%clk 0:00:54.7]} 25. Rh6
{[%clk 0:00:29.8]} 25... Rbf8 {[%clk 0:00:54.2]} 26. Qh2 {[%clk 0:00:21.1]}
26... Qd8 {[%clk 0:00:48.6]} 27. Qh5 {[%clk 0:00:20.3]} 27... Qe7 {[%clk
0:00:47.2]} 28. Rh1 {[%clk 0:00:20.9]} 28... e5 {[%clk 0:00:44.9]} 29. Rg6
{[%clk 0:00:17.3]} 29... Rg7 {[%clk 0:00:44.7]} 30. Bf3 {[%clk 0:00:04.7]} 30...
Rxg6 {[%clk 0:00:16.9]} 31. Qxg6 {[%clk 0:00:04.9]} 31... exd4 {[%clk
0:00:17.6]} 32. exd4 {[%clk 0:00:05.4]} 32... Re8 {[%clk 0:00:18.4]} 33. Qh5
{[%clk 0:00:02.8]} 33... Qe3+ {[%clk 0:00:17.1]} 34. Kd1 {[%clk 0:00:03.2]}
34... Qxf3+ {[%clk 0:00:16]} 35. Kc1 {[%clk 0:00:03.7]} 35... Qe3+ {[%clk
0:00:16.4]} 36. Kb1 {[%clk 0:00:03.7]} 36... Qe1+ {[%clk 0:00:12.5]} 37. Nd1
{[%clk 0:00:03.7]} 37... Qe7 {[%clk 0:00:12.4]} 38. a4 {[%clk 0:00:03.4]} 38...
Rf8 {[%clk 0:00:09.6]} 39. Rh3 {[%clk 0:00:01.8]} 39... Qf7 {[%clk 0:00:08.4]}
40. Qh6 {[%clk 0:00:02.4]} 40... Re8 {[%clk 0:00:08.6]} 41. Ne3 {[%clk
0:00:02.4]} 41... Nf8 {[%clk 0:00:06.8]} 42. Nf5 {[%clk 0:00:01.9]} 42... Qg6
{[%clk 0:00:07.2]} 43. Qxg6 {[%clk 0:00:01.2]} 43... Nxg6 {[%clk 0:00:07.7]} 44.
Rh6 {[%clk 0:00:02.1]} 44... Nf8 {[%clk 0:00:04.9]} 45. Rxf6 {[%clk 0:00:03]}
45... Nxh7 {[%clk 0:00:04.9]} 46. Rf7 {[%clk 0:00:03.6]} 46... Bc8 {[%clk
0:00:03.6]} 47. Rxa7 {[%clk 0:00:04.5]} 47... Bxf5 {[%clk 0:00:03.3]} 48. gxf5
{[%clk 0:00:03.8]} 48... g4 {[%clk 0:00:04]} 49. Ra6 {[%clk 0:00:04.5]} 49...
Rg8 {[%clk 0:00:03.7]} 50. Re6 {[%clk 0:00:03.3]} 50... g3 {[%clk 0:00:03.7]}
51. Re1 {[%clk 0:00:04]} 51... Nf6 {[%clk 0:00:03.3]} 52. Rd1 {[%clk 0:00:04.2]}
52... Ne4 {[%clk 0:00:03.7]} 53. Rh1+ {[%clk 0:00:01.8]} 53... Kg7 {[%clk
0:00:03.7]} 54. Rg1 {[%clk 0:00:02.3]} 54... Kf6 {[%clk 0:00:04.3]} 55. b3
{[%clk 0:00:01.6]} 55... Rb8 {[%clk 0:00:04.8]} 56. Kb2 {[%clk 0:00:01.2]} 56...
Kxf5 {[%clk 0:00:05.5]} 0-1

[Event "Late-Titled-Tuesday-Blitz-August-29-2023"]
[Site "Chess.com"]
[Date "2023.08.29"]
[Round "10"]
[White "Matibar"]
[Black "ahkashefi2800"]
[Result "0-1"]
[WhiteElo "2803"]
[BlackElo "2602"]
[TimeControl "180+1"]
[EndTime "15:53:57 PDT"]
[Termination "ahkashefi2800 won by resignation"]

1. f4 {[%clk 0:02:59.9]} 1... d5 {[%clk 0:01:43.4]} 2. Nf3 {[%clk 0:01:44.4]}
2... g6 {[%clk 0:01:36.9]} 3. g3 {[%clk 0:01:43.8]} 3... Bg7 {[%clk 0:01:37]} 4.
Bg2 {[%clk 0:01:43.9]} 4... Nh6 {[%clk 0:01:36.9]} 5. O-O {[%clk 0:01:42.6]}
5... Nf5 {[%clk 0:01:36.9]} 6. d3 {[%clk 0:01:42.1]} 6... d4 {[%clk 0:01:37]} 7.
c3 {[%clk 0:01:37.9]} 7... c5 {[%clk 0:01:36.5]} 8. e4 {[%clk 0:01:33.8]} 8...
dxe3 {[%clk 0:01:36.1]} 9. Qe2 {[%clk 0:01:34]} 9... h5 {[%clk 0:01:36.6]} 10.
Bxe3 {[%clk 0:01:34.2]} 10... h4 {[%clk 0:01:26.6]} 11. Bf2 {[%clk 0:01:33.5]}
11... hxg3 {[%clk 0:01:26.5]} 12. hxg3 {[%clk 0:01:33.6]} 12... Nc6 {[%clk
0:01:18.1]} 13. Nbd2 {[%clk 0:01:29.3]} 13... Be6 {[%clk 0:01:17.8]} 14. Ne4
{[%clk 0:01:24.7]} 14... b6 {[%clk 0:01:07.6]} 15. Rad1 {[%clk 0:00:56.2]} 15...
Qd7 {[%clk 0:01:00.1]} 16. Rfe1 {[%clk 0:00:49.7]} 16... O-O-O {[%clk
0:00:54.1]} 17. d4 {[%clk 0:00:30.9]} 17... cxd4 {[%clk 0:00:53.7]} 18. Qa6+
{[%clk 0:00:30.3]} 18... Qb7 {[%clk 0:00:52.3]} 19. Qxb7+ {[%clk 0:00:27.2]}
19... Kxb7 {[%clk 0:00:53.2]} 20. Neg5 {[%clk 0:00:21.1]} 20... Bxa2 {[%clk
0:00:46.2]} 21. cxd4 {[%clk 0:00:21]} 21... Bd5 {[%clk 0:00:27.9]} 22. Ne5
{[%clk 0:00:18.5]} 22... Bxe5 {[%clk 0:00:25]} 23. dxe5 {[%clk 0:00:17.6]} 23...
Bxg2 {[%clk 0:00:24.6]} 24. Kxg2 {[%clk 0:00:18.1]} 24... f6 {[%clk 0:00:18.7]}
25. Nf7 {[%clk 0:00:17.9]} 25... Rxd1 {[%clk 0:00:18.4]} 26. Rxd1 {[%clk
0:00:18.8]} 26... Rh7 {[%clk 0:00:06.9]} 27. e6 {[%clk 0:00:17.5]} 27... Kc8
{[%clk 0:00:04.4]} 28. Rc1 {[%clk 0:00:16.2]} 28... Kb7 {[%clk 0:00:04.3]} 29.
Rd1 {[%clk 0:00:16.3]} 29... Kc8 {[%clk 0:00:04.2]} 30. Rd7 {[%clk 0:00:10.1]}
30... Ng7 {[%clk 0:00:04.5]} 31. Nd6+ {[%clk 0:00:02.6]} 31... exd6 {[%clk
0:00:03.4]} 32. Rf7 {[%clk 0:00:02.8]} 32... Kd8 {[%clk 0:00:02.4]} 33. Rxf6
{[%clk 0:00:02]} 33... Ke7 {[%clk 0:00:02.2]} 34. Rxg6 {[%clk 0:00:02.3]} 34...
Nxe6 {[%clk 0:00:02.8]} 35. f5 {[%clk 0:00:02.8]} 35... Nf8 {[%clk 0:00:02.8]}
36. Rg5 {[%clk 0:00:03.2]} 36... Nd8 {[%clk 0:00:02.5]} 37. g4 {[%clk
0:00:03.1]} 37... Nf7 {[%clk 0:00:02.8]} 38. Rh5 {[%clk 0:00:02.9]} 38... Rxh5
{[%clk 0:00:02.9]} 39. gxh5 {[%clk 0:00:03.8]} 39... Kf6 {[%clk 0:00:03.5]} 40.
Kf3 {[%clk 0:00:04.1]} 40... Kxf5 {[%clk 0:00:04]} 41. Bh4 {[%clk 0:00:04.2]}
41... Ne5+ {[%clk 0:00:04.1]} 42. Ke2 {[%clk 0:00:04.7]} 42... Ne6 {[%clk
0:00:04.6]} 43. Be7 {[%clk 0:00:05.3]} 43... Nf4+ {[%clk 0:00:04.6]} 44. Kd2
{[%clk 0:00:05.8]} 44... Nxh5 {[%clk 0:00:03.8]} 45. Kc3 {[%clk 0:00:06.5]}
45... Ke6 {[%clk 0:00:03.8]} 46. Bd8 {[%clk 0:00:06.6]} 46... Nf4 {[%clk
0:00:04.2]} 47. Kb4 {[%clk 0:00:07]} 47... Nc6+ {[%clk 0:00:03.7]} 48. Kb5
{[%clk 0:00:07.9]} 48... Nxd8 {[%clk 0:00:04.6]} 49. b4 {[%clk 0:00:08.1]} 49...
Kd7 {[%clk 0:00:04.6]} 50. Ka6 {[%clk 0:00:09]} 50... Kc7 {[%clk 0:00:04.8]} 51.
b5 {[%clk 0:00:09.9]} 51... Nd5 {[%clk 0:00:03.1]} 52. Kxa7 {[%clk 0:00:10.2]}
52... Ne7 {[%clk 0:00:03.1]} 53. Ka6 {[%clk 0:00:11.1]} 53... Ne6 {[%clk
0:00:02.9]} 54. Ka7 {[%clk 0:00:12]} 54... Nc8+ {[%clk 0:00:02]} 55. Ka8 {[%clk
0:00:12.9]} 55... Ne7 {[%clk 0:00:02.8]} 56. Ka7 {[%clk 0:00:13.1]} 56... d5
{[%clk 0:00:03.7]} 57. Ka8 {[%clk 0:00:14]} 57... d4 {[%clk 0:00:04.6]} 0-1